bitfinex/quotes_ETHUSD_20250131
["timestamp","ask_amount","ask_price","bid_price","bid_amount"]
[1738285574201,3.05714,3271.1,3270.5,0.565]
[1738285574572,3.05717,3271.0,3270.5,0.565]
[1738285575219,0.08202551,3270.9,3270.5,0.565]
[1738285575430,3.13930551,3270.9,3270.5,0.565]
[1738285575578,3.05737,3270.8,3270.5,0.565]
[1738285575776,3.13938467,3270.8,3270.5,0.565]
[1738285576021,0.08201467,3270.8,3270.5,0.565]
[1738285576234,3.84607,3271.0,3270.5,0.565]
[1738285576433,3.05699,3271.2,3270.7,0.565]
[1738285576911,3.8457,3271.4,3270.7,3.6224]
[1738285577113,3.0568,3271.4,3270.7,3.6224]
[1738285577727,3.05689,3271.3,3270.7,0.565]
[1738285577928,3.05702,3271.2,3270.7,0.565]
[1738285579532,3.05718,3271.0,3270.7,0.202]
[1738285580585,3.05741,3270.8,3270.6,0.565]
[1738285580786,3.05754,3270.6,3270.5,0.3585418]
[1738285581531,3.05754,3270.6,3270.3,0.202]
[1738285581691,3.05769,3270.5,3270.3,0.202]
[1738285582088,3.05736,3270.8,3270.4,0.55]
[1738285582293,3.05751,3270.7,3270.4,0.55]
[1738285582703,3.05736,3270.8,3270.4,0.55]
[1738285583241,3.05754,3270.7,3270.4,0.55]
[1738285583403,3.05756,3270.6,3270.4,0.55]
[1738285583814,3.05754,3270.7,3270.4,0.55]
[1738285584133,6.11459,3270.9,3270.5,0.015]
[1738285584331,3.05736,3270.8,3270.5,0.015]
[1738285584928,3.05736,3270.8,3270.6,0.8265]
[1738285585138,3.05727,3270.9,3270.6,0.8265]
[1738285585336,3.05742,3270.8,3270.6,0.8265]
[1738285588745,3.05744,3270.7,3270.6,1.3765]
[1738285589738,3.05707,3271.2,3270.7,0.55]
[1738285589907,0.7803,3271.4,3270.7,0.55]
[1738285590108,3.05717,3271.0,3270.7,0.55]
[1738285590501,0.08214256,3270.9,3270.7,0.55]
[1738285590897,3.13943256,3270.9,3270.7,0.55]
[1738285591411,0.08214256,3270.9,3270.7,0.55]
[1738285591598,3.05718,3271.0,3270.7,0.55]
[1738285591800,0.08211064,3270.8,3270.7,0.55]
[1738285592038,3.05718,3271.0,3270.7,0.55]
[1738285592637,0.08213202,3270.9,3270.7,0.55]
[1738285593152,0.08213202,3270.9,3270.8,3.07235]
[1738285593300,0.08213202,3270.9,3270.8,4.41995]
[1738285593498,3.05681,3271.4,3270.8,4.41995]
[1738285594041,0.08225957,3271.3,3270.8,4.41995]
[1738285594345,0.08225957,3271.3,3270.8,1.3626]
[1738285594544,0.08225957,3271.3,3270.8,0.202]
[1738285594545,0.50296875,3271.3,3270.8,0.202]
[1738285594698,3.05724,3271.0,3270.8,0.202]
[1738285595317,3.05724,3271.0,3270.9,35.0]
[1738285595949,3.05698,3271.2,3270.9,35.0]
[1738285596105,3.05681,3271.4,3271.0,0.565]
[1738285596457,3.05681,3271.4,3271.0,0.015]
[1738285596799,3.0569,3271.3,3271.1,35.0]
[1738285599023,3.05716,3271.0,3270.6,0.60286571]
[1738285599199,3.05744,3270.7,3270.6,0.60286571]
[1738285599714,3.05744,3270.7,3270.4,0.202]
[1738285599715,3.05776,3270.4,3270.3,35.0]
[1738285601729,3.1397763,3270.4,3270.3,35.0]
[1738285604407,3.05784,3270.3,3269.9,0.202]
[1738285604808,0.08199988,3270.2,3270.0,35.0]
[1738285605109,3.05784,3270.3,3270.0,35.0]
[1738285605947,0.08198407,3270.2,3270.0,35.0]
[1738285606347,3.05773,3270.4,3270.0,35.0]
[1738285606709,0.08200018,3270.3,3270.0,35.0]
[1738285607013,3.05773,3270.4,3270.0,35.0]
[1738285607209,0.08199988,3270.2,3270.0,35.0]
[1738285607511,3.05786,3270.3,3270.0,35.0]
[1738285607850,0.08198407,3270.2,3270.0,35.0]
[1738285608150,3.05786,3270.3,3270.0,35.0]
[1738285608648,0.08199988,3270.2,3270.0,35.0]
[1738285608823,3.05786,3270.3,3270.0,35.0]
[1738285609209,0.08199988,3270.2,3270.0,35.0]
[1738285609409,3.05786,3270.3,3270.0,35.0]
[1738285609707,0.08196795,3270.1,3270.0,35.0]
[1738285609908,3.05786,3270.3,3270.0,35.0]
[1738285610138,3.86829,3270.5,3270.0,35.0]
[1738285610340,0.08199988,3270.2,3270.0,35.0]
[1738285610728,3.86829,3270.5,3270.0,35.0]
[1738285610918,3.05773,3270.4,3270.0,35.0]
[1738285611118,3.1397463,3270.4,3270.0,35.0]
[1738285611353,3.08846222,3270.3,3270.0,35.0]
[1738285611560,0.8106,3270.5,3270.0,35.0]
[1738285611863,0.08198934,3270.2,3270.0,35.0]
[1738285612036,3.05782,3270.3,3270.0,35.0]
[1738285612236,0.08193017,3270.2,3270.0,35.0]
[1738285612435,3.05782,3270.3,3270.0,35.0]
[1738285612663,0.08191933,3270.1,3270.0,35.0]
[1738285612864,3.05782,3270.3,3270.0,35.0]
[1738285613079,0.08191933,3270.1,3270.0,35.0]
[1738285613571,3.05782,3270.3,3270.0,35.0]
[1738285613925,0.08193017,3270.2,3270.0,35.0]
[1738285614235,3.86826,3270.5,3270.0,35.0]
[1738285614436,0.0816979,3270.1,3270.0,35.0]
[1738285614819,3.86826,3270.5,3270.0,35.0]
[1738285615025,0.08174625,3270.4,3270.0,35.0]
[1738285615536,3.05774,3270.4,3270.0,35.0]
[1738285615733,3.05754,3270.7,3270.0,35.0]
[1738285615940,0.08174068,3270.3,3270.0,35.0]
[1738285616459,0.08172355,3270.2,3270.0,35.0]
[1738285616664,0.774,3270.8,3270.0,35.0]
[1738285616855,3.05773,3270.4,3270.0,35.0]
[1738285617027,0.0817344,3270.3,3270.0,35.0]
[1738285619566,3.05754,3270.6,3270.0,35.0]
[1738285619768,0.08171828,3270.2,3270.0,35.0]
[1738285619928,3.05754,3270.6,3270.0,35.0]
[1738285620265,0.08178244,3270.5,3270.0,35.0]
[1738285620439,3.05765,3270.5,3270.0,35.0]
[1738285620639,0.08181735,3270.4,3270.0,35.0]
[1738285621669,3.05754,3270.6,3270.0,35.0]
[1738285621871,0.08184593,3270.5,3270.0,35.0]
[1738285622056,3.05764,3270.5,3270.0,35.0]
[1738285622371,0.08182982,3270.4,3270.2,0.785]
[1738285622871,3.05734,3270.9,3270.3,0.565]
[1738285623067,0.08188478,3270.8,3270.3,0.55]
[1738285623372,3.05754,3270.6,3270.3,0.55]
[1738285623670,3.05742,3270.8,3270.3,0.55]
[1738285623832,0.08187921,3270.7,3270.3,0.55]
[1738285624823,0.08187921,3270.7,3270.4,35.0]
[1738285625231,0.7522,3271.1,3270.5,0.55]
[1738285625555,0.7522,3271.1,3270.6,3.05752]
[1738285625931,0.08149635,3271.0,3270.7,35.0]
[1738285626480,3.80929,3271.1,3270.7,35.0]
[1738285626833,0.7522,3271.1,3270.7,35.0]
[1738285627270,3.80927,3271.1,3270.7,35.0]
[1738285629269,3.80927,3271.1,3270.6,0.565]
[1738285629491,3.82509,3271.3,3270.6,3.62253]
[1738285629672,3.82509,3271.3,3270.8,0.565]
[1738285630042,0.0816203,3271.2,3270.8,0.565]
[1738285630369,3.82509,3271.3,3270.8,0.565]
[1738285630679,0.08171749,3271.2,3270.8,0.565]
[1738285630874,3.16931971,3271.2,3270.8,0.565]
[1738285631080,3.08760222,3271.2,3270.8,0.92494483]
[1738285631238,3.05723,3271.0,3270.8,0.35994483]
[1738285631441,3.1389239,3270.9,3270.8,0.35994483]
[1738285632007,0.0816639,3270.9,3270.8,0.35994483]
[1738285632480,0.0816639,3270.9,3270.5,35.55]
[1738285632842,3.05719,3271.0,3270.5,35.55]
[1738285633441,3.05701,3271.2,3270.6,0.015]
[1738285633755,0.08167285,3271.1,3270.6,0.015]
[1738285633971,3.05719,3271.0,3270.6,0.015]
[1738285634584,0.08165213,3270.9,3270.6,0.015]
[1738285634776,0.08165213,3270.9,3270.5,35.55]
[1738285634989,3.16957435,3270.9,3270.5,35.55]
[1738285635139,0.7682,3271.3,3270.6,0.015]
[1738285635340,3.82514,3271.3,3270.6,3.07251]
[1738285635802,0.08161302,3271.2,3270.6,3.07251]
[1738285636003,3.0571,3271.1,3270.5,38.05757]
[1738285636212,3.0572,3271.0,3270.5,35.0]
[1738285636512,0.08157527,3270.9,3270.6,0.565]
[1738285636690,3.0572,3271.0,3270.6,0.565]
[1738285637006,0.08157527,3270.9,3270.6,0.565]
[1738285637207,3.05754,3270.6,3270.5,35.0]
[1738285637408,3.05775,3270.4,3270.0,0.201]
[1738285637614,0.03059222,3270.3,3270.0,0.201]
[1738285637913,3.13930632,3270.3,3270.1,35.0]
[1738285638263,3.05789,3270.3,3270.1,35.0]
[1738285638710,3.05775,3270.4,3270.1,35.0]
[1738285639018,3.05782,3270.3,3270.1,35.0]
[1738285639363,0.08134324,3270.2,3270.1,35.0]
[1738285639677,3.81721,3270.2,3270.1,35.0]
[1738285639896,3.89855349,3270.2,3270.1,35.0]
[1738285643292,3.89855349,3270.2,3269.7,1.5787]
[1738285643293,3.89855349,3270.2,3269.8,0.565]
[1738285643797,3.89855349,3270.2,3269.9,35.0]
[1738285644119,3.81721,3270.2,3269.9,35.0]
[1738285644690,0.7593,3270.2,3269.9,35.0]
[1738285644925,3.05782,3270.3,3269.9,35.0]
[1738285645121,0.7732,3270.4,3269.9,35.0]
[1738285645122,0.03059222,3270.2,3269.9,35.0]
[1738285645419,3.05803,3270.1,3269.9,35.0]
[1738285645803,0.08121922,3270.0,3269.9,35.0]
[1738285646223,3.05803,3270.1,3269.9,35.0]
[1738285646598,3.05787,3270.3,3269.9,35.0]
[1738285646794,3.05796,3270.2,3269.9,35.0]
[1738285646994,3.13920839,3270.2,3269.9,35.0]
[1738285648524,3.13920839,3270.2,3269.7,0.201]
[1738285649104,3.13920839,3270.2,3269.8,35.0]
[1738285650216,0.08124839,3270.2,3269.8,38.05822]
[1738285650531,0.08124839,3270.2,3269.8,35.0]
[1738285650689,3.08851222,3270.2,3269.8,35.0]
[1738285651225,3.08851222,3270.2,3269.9,0.22485714]
[1738285652389,0.08107374,3270.1,3269.9,0.22485714]
[1738285652628,0.08107374,3270.1,3269.9,35.22485714]
[1738285652987,3.08851222,3270.2,3270.0,0.22485714]
[1738285653629,0.08107374,3270.1,3270.0,0.22485714]
[1738285654002,3.05792,3270.2,3270.0,0.22485714]
[1738285654336,0.08107374,3270.1,3270.0,0.22485714]
[1738285654686,3.05792,3270.2,3270.0,0.22485714]
[1738285655051,0.7732,3270.4,3270.0,0.22485714]
[1738285655251,0.08106847,3270.1,3270.0,0.22485714]
[1738285655591,3.83101,3270.4,3270.0,0.22485714]
[1738285656002,0.08108803,3270.3,3270.0,0.22485714]
[1738285656550,3.05787,3270.3,3270.0,0.22485714]
[1738285656870,0.08107191,3270.2,3270.0,0.22485714]
[1738285657183,3.05787,3270.3,3270.0,0.22485714]
[1738285657796,0.08107191,3270.2,3270.0,0.22485714]
[1738285657958,0.08107191,3270.2,3270.1,0.22485714]
[1738285658153,3.05787,3270.3,3270.1,0.22485714]
[1738285658355,0.08107718,3270.2,3270.1,0.22485714]
[1738285658556,3.05787,3270.3,3270.1,0.22485714]
[1738285658796,0.08108246,3270.2,3270.1,0.22485714]
[1738285659193,3.05787,3270.3,3270.1,0.22485714]
[1738285659692,0.08108773,3270.2,3269.9,0.5848519]
[1738285660199,0.08106106,3270.1,3269.9,0.5848519]
[1738285660366,0.08106106,3270.1,3269.9,35.5848519]
[1738285660567,3.05787,3270.3,3269.9,35.5848519]
[1738285660996,0.08107718,3270.2,3269.9,35.5848519]
[1738285661288,0.08107718,3270.2,3270.0,0.22485714]
[1738285661478,3.05787,3270.3,3270.0,0.22485714]
[1738285662136,0.08108773,3270.2,3270.0,0.22485714]
[1738285662399,3.05787,3270.3,3270.0,0.22485714]
[1738285662898,3.13901773,3270.2,3270.1,0.22485714]
[1738285663255,3.05793,3270.2,3270.1,0.22485714]
[1738285664779,3.08852222,3270.2,3270.1,0.22485714]
[1738285664988,3.16967886,3270.2,3270.1,0.22485714]
[1738285665167,3.13908664,3270.2,3270.1,0.22485714]
[1738285668957,5.98824171,3270.2,3270.1,0.22485714]
[1738285669157,6.06938884,3270.2,3270.1,0.22485714]
[1738285669747,6.06938884,3270.2,3268.5,5.48044]
[1738285669748,3.86347,3269.5,3269.4,0.36082293]
[1738285669955,5.43355087,3269.5,3269.4,0.36082293]
[1738285670106,3.94431183,3269.5,3269.4,0.36082293]
[1738285670305,3.05873,3269.4,3268.9,35.0]
[1738285670541,3.13933385,3269.3,3268.9,35.0]
[1738285671338,3.05901,3269.1,3268.9,35.0]
[1738285671648,3.05903,3269.0,3268.9,35.0]
[1738285671809,3.87363,3269.0,3268.9,35.0]
[1738285672005,4.872772,3269.0,3268.6,0.201]
[1738285672240,3.05931,3268.8,3268.6,0.201]
[1738285672432,3.05932,3268.7,3268.6,0.201]
[1738285672637,3.13960141,3268.7,3268.5,37.421]
[1738285673018,3.13960141,3268.7,3268.5,2.421]
[1738285673207,3.09000222,3268.6,3268.5,2.421]
[1738285673439,3.05941,3268.6,3268.5,2.421]
[1738285673645,3.13965945,3268.6,3268.5,2.421]
[1738285674171,3.05941,3268.6,3268.5,2.421]
[1738285674580,3.05928,3268.8,3268.5,2.421]
[1738285674741,3.05932,3268.7,3268.5,2.421]
[1738285675381,3.05913,3268.9,3268.5,2.421]
[1738285675581,3.05887,3269.2,3268.6,0.565]
[1738285675783,3.05866,3269.4,3268.6,3.03809145]
[1738285676076,3.05866,3269.4,3268.8,3.05921]
[1738285676479,0.8234,3269.5,3268.7,0.5575]
[1738285676480,3.05876,3269.3,3268.7,0.5575]
[1738285677215,3.05876,3269.3,3268.7,3.61681]
[1738285680279,0.03059222,3269.2,3268.7,0.5575]
[1738285680446,3.1692087,3269.2,3268.7,0.5575]
[1738285680644,3.08945222,3269.2,3268.7,0.5575]
[1738285680869,0.07974563,3269.1,3268.7,0.5575]
[1738285681145,0.03059222,3269.4,3268.7,0.5575]
[1738285681345,3.05885,3269.2,3268.7,0.5575]
[1738285681643,0.07973508,3269.1,3268.7,0.5575]
[1738285682854,3.91743222,3269.0,3268.5,0.7501]
[1738285683181,3.91743222,3269.0,3268.0,0.3056]
[1738285683182,3.05941,3268.6,3268.2,0.8111]
[1738285683383,0.11022308,3268.5,3268.2,0.8111]
[1738285683539,3.16973308,3268.5,3268.2,0.8111]
[1738285684155,0.8044,3268.3,3267.6,0.7622]
[1738285684385,3.06007,3267.9,3267.6,0.7622]
[1738285684769,0.07934967,3267.8,3267.6,0.7622]
[1738285685645,0.07934967,3267.8,3267.6,0.98718712]
[1738285686057,3.05998,3268.0,3267.6,0.98718712]
[1738285686386,0.03059222,3267.9,3267.6,0.22498712]
[1738285686584,0.07934439,3267.8,3267.6,0.22498712]
[1738285686968,0.07934439,3267.8,3267.7,0.565]
[1738285687173,3.88966,3268.6,3268.0,0.565]
[1738285687375,0.07924349,3268.5,3268.0,3.62495]
[1738285688078,0.07924349,3268.5,3268.2,0.818]
[1738285688389,3.85605,3268.8,3268.2,0.818]
[1738285688390,3.05933,3268.7,3268.2,0.818]
[1738285688564,0.0793065,3268.4,3268.2,0.818]
[1738285688758,3.05942,3268.6,3268.2,0.818]
[1738285688957,0.07932791,3268.5,3268.2,0.818]
[1738285689402,0.8024,3268.2,3267.6,0.7568]
[1738285689591,3.05997,3268.0,3267.6,0.7568]
[1738285689757,3.05997,3268.0,3267.4,4.68496667]
[1738285689962,0.07933055,3267.9,3267.5,0.015]
[1738285690163,3.86222,3268.2,3267.5,3.62535]
[1738285690404,0.07936283,3268.1,3267.5,0.565]
[1738285690614,3.13930283,3268.1,3267.5,0.565]
[1738285690805,3.16989505,3268.1,3267.5,0.78979567]
[1738285690967,3.06001,3268.0,3267.5,0.78979567]
[1738285691165,0.07932867,3267.9,3267.5,0.78979567]
[1738285691965,0.07932867,3267.9,3267.5,0.565]
[1738285693108,0.07932867,3267.9,3267.7,0.565]
[1738285693300,0.07932867,3267.9,3267.8,3.62516]
[1738285693495,3.0596,3268.4,3267.9,0.55]
[1738285694605,3.0596,3268.4,3267.8,0.015]
[1738285694764,3.0598,3268.2,3267.8,0.015]
[1738285695415,0.07936095,3268.1,3267.8,0.015]
[1738285696381,3.05947,3268.6,3268.0,0.565]
[1738285696781,0.0793271,3268.5,3268.0,0.565]
[1738285697372,0.796,3268.3,3267.9,0.015]
[1738285697693,0.07928397,3268.2,3267.9,0.015]
[1738285698095,0.03059222,3268.1,3267.4,3.66666667]
[1738285698411,3.06014,3267.9,3267.5,0.201]
[1738285698613,0.03059222,3267.8,3267.4,0.66666667]
[1738285698776,3.13940952,3267.8,3267.5,0.2251734]
[1738285698973,3.06035,3267.6,3267.5,0.2251734]
[1738285699172,3.86668541,3267.6,3267.5,0.2251734]
[1738285699493,4.63228541,3267.6,3267.5,0.2251734]
[1738285699896,4.63228541,3267.6,3267.4,0.66666667]
[1738285700104,3.82604,3267.5,3267.4,0.66666667]
[1738285700477,3.935346,3267.5,3267.4,0.66666667]
[1738285700678,4.98917317,3267.5,3267.4,0.66666667]
[1738285701495,4.95858095,3267.5,3267.4,0.66666667]
[1738285702887,4.98917317,3267.5,3267.4,0.66666667]
[1738285705896,4.95858095,3267.5,3267.4,0.66666667]
[1738285707018,4.98917317,3267.5,3267.4,0.66666667]
[1738285708332,7.98917317,3267.5,3267.4,0.66666667]
[1738285708486,7.95858095,3267.5,3267.4,6.67e-06]
[1738285709688,7.96608095,3267.5,3266.4,2.422]
[1738285709895,7.96608095,3267.5,3265.5,0.8163]
[1738285709896,3.06204,3265.8,3265.5,0.8163]
[1738285710300,0.07744578,3265.7,3265.0,0.0075]
[1738285710498,0.07744578,3265.7,3264.9,0.0075]
[1738285710499,3.06222,3265.6,3265.1,0.764]
[1738285710706,0.03059222,3265.5,3265.1,0.764]
[1738285710916,0.03059222,3265.5,3265.0,0.202]
[1738285710917,3.06258,3265.3,3265.0,0.202]
[1738285711106,3.06258,3265.3,3264.8,0.764]
[1738285711107,0.03059222,3265.2,3264.8,0.764]
[1738285711531,3.09321222,3265.2,3264.8,0.764]
[1738285711734,0.07700943,3265.1,3264.8,0.764]
[1738285712039,3.13970943,3265.1,3264.8,0.764]
[1738285712253,0.7916,3264.9,3264.2,0.7579]
[1738285712538,3.09356222,3264.8,3264.7,0.22543687]
[1738285712693,3.16992343,3264.8,3264.7,0.22543687]
[1738285713808,3.16992343,3264.8,3264.3,0.28176339]
[1738285714045,3.06318,3264.6,3264.3,0.28176339]
[1738285714224,3.06327,3264.5,3264.3,0.28176339]
[1738285714396,3.13957086,3264.5,3264.3,0.28176339]
[1738285714596,0.07630086,3264.5,3264.3,0.28176339]
[1738285714835,3.09388222,3264.5,3264.3,0.28176339]
[1738285715179,0.07621469,3264.4,3264.3,0.28176339]
[1738285715388,0.07621469,3264.4,3264.3,35.28176339]
[1738285715737,3.37976016,3265.1,3264.4,0.015]
[1738285715984,0.52319178,3265.0,3264.4,3.62832]
[1738285716142,0.52319178,3265.0,3264.3,35.0]
[1738285716339,3.06295,3264.9,3264.3,35.0]
[1738285716540,0.07607891,3264.8,3264.4,0.5575]
[1738285716771,0.7552,3265.6,3264.8,0.015]
[1738285716987,0.7552,3265.6,3264.7,3.61306]
[1738285716988,3.06247,3265.4,3264.7,3.06306]
[1738285717140,3.06261,3265.2,3264.9,35.0]
[1738285717677,0.07342898,3265.1,3264.9,35.0]
[1738285718179,3.06278,3265.0,3264.9,35.0]
[1738285718379,3.13619281,3265.0,3264.9,35.0]
[1738285719602,3.06289,3264.9,3264.3,3.55]
[1738285719769,0.07347618,3264.8,3264.3,3.55]
[1738285719966,0.07347618,3264.8,3264.6,0.0075]
[1738285720170,3.06241,3265.4,3264.7,0.789]
[1738285720499,0.8158,3265.6,3265.1,0.565]
[1738285720700,0.8158,3266.1,3265.5,3.06231]
[1738285720916,0.8158,3266.1,3265.4,0.015]
[1738285721210,0.03059222,3266.0,3265.5,3.06224]
[1738285721361,3.09249222,3266.0,3265.4,0.015]
[1738285721562,0.03059222,3266.0,3265.4,0.015]
[1738285721759,3.06215,3265.7,3265.2,35.789]
[1738285721963,0.8096,3265.5,3264.8,0.8973817]
[1738285722190,0.03059222,3265.4,3264.8,0.8973817]
[1738285722358,3.06268,3265.2,3264.8,0.8973817]
[1738285722558,0.03059222,3265.1,3264.8,0.8973817]
[1738285722852,0.8096,3265.5,3264.9,0.28047274]
[1738285723056,0.03059222,3265.4,3264.9,0.28047274]
[1738285724070,4.259104,3265.5,3265.0,0.28047274]
[1738285724399,3.06255,3265.3,3265.0,0.28047274]
[1738285724597,0.03059222,3265.2,3265.0,0.28047274]
[1738285724814,3.06269,3265.1,3265.0,0.28047274]
[1738285725363,3.13624354,3265.1,3265.0,0.28047274]
[1738285725984,3.13624354,3265.1,3264.8,0.28047274]
[1738285726301,0.07355354,3265.1,3264.8,0.28047274]
[1738285726458,3.06288,3264.9,3264.8,0.28047274]
[1738285726661,4.19702335,3264.9,3264.8,0.28047274]
[1738285726965,4.30115704,3264.9,3264.8,0.28047274]
[1738285727190,4.30115704,3264.9,3264.7,0.44908508]
[1738285727396,1.23827704,3264.9,3264.2,0.72955782]
[1738285727598,3.06338,3264.4,3264.2,0.72955782]
[1738285727801,0.07344442,3264.3,3264.2,0.72955782]
[1738285728804,3.13688442,3264.3,3264.2,0.72955782]
[1738285729100,3.75691086,3264.3,3264.2,0.28047274]
[1738285729306,3.78750308,3264.3,3264.2,0.28047274]
[1738285729809,3.75691086,3264.3,3264.2,0.28047274]
[1738285730261,3.78750308,3264.3,3264.2,0.28047274]
[1738285730418,4.56510308,3264.3,3264.2,0.28047274]
[1738285733345,1.47107086,3264.3,3263.5,0.44979938]
[1738285733557,3.06389,3263.9,3263.5,0.44979938]
[1738285733958,3.06392,3263.8,3263.5,0.44979938]
[1738285734159,0.07299711,3263.7,3263.5,0.44979938]
[1738285734330,3.06392,3263.8,3263.5,0.44979938]
[1738285734533,3.13703711,3263.7,3263.5,0.44979938]
[1738285734836,3.09448222,3263.9,3263.5,0.44979938]
[1738285735046,3.06389,3263.9,3263.5,0.44979938]
[1738285735232,0.07298866,3263.8,3263.5,0.44979938]
[1738285735572,0.07298866,3263.8,3263.6,0.2817453]
[1738285735942,0.07298866,3263.8,3263.7,1.3653]
[1738285736270,3.09404222,3264.3,3263.8,0.0075]
[1738285736467,0.03059222,3264.3,3263.8,0.0075]
[1738285736675,3.06355,3264.2,3263.8,0.0075]
[1738285737039,0.03059222,3264.1,3263.9,35.0]
[1738285738182,3.06355,3264.2,3263.9,35.0]
[1738285738773,3.09394222,3264.4,3264.0,0.73244139]
[1738285738948,3.06335,3264.4,3264.0,0.73244139]
[1738285739273,3.06319,3264.6,3264.0,0.73244139]
[1738285739429,3.06328,3264.5,3264.0,0.73244139]
[1738285739979,0.03059222,3264.4,3264.1,35.0]
[1738285740145,3.06342,3264.4,3264.1,35.0]
[1738285740347,0.07299643,3264.3,3264.1,0.73244139]
[1738285740945,3.06342,3264.4,3264.1,0.95836531]
[1738285741352,3.16704912,3264.3,3264.1,0.95836531]
[1738285741775,3.16704912,3264.3,3264.2,0.73244139]
[1738285741978,3.1364569,3264.3,3264.2,0.73244139]
[1738285742657,3.75642859,3264.3,3264.2,0.73244139]
[1738285745033,0.69297859,3264.3,3263.5,0.45069609]
[1738285745237,3.0641,3263.6,3263.5,0.45069609]
[1738285745982,3.13708441,3263.6,3263.5,0.45069609]
[1738285746274,4.14890707,3263.6,3263.5,0.45069609]
[1738285746446,4.14890707,3263.6,3263.5,0.28275957]
[1738285746653,7.14890707,3263.6,3263.5,0.28275957]
[1738285747837,4.14890707,3263.6,3263.5,0.28275957]
[1738285748042,3.06468,3263.0,3262.8,0.67858128]
[1738285748353,3.06475,3262.9,3262.8,0.67858128]
[1738285748546,3.13714095,3262.9,3262.8,0.67858128]
[1738285749246,3.13714095,3262.9,3262.8,0.45236668]
[1738285749662,3.13714095,3262.9,3262.8,0.73503205]
[1738285750545,0.03059222,3263.1,3262.8,0.73503205]
[1738285750745,3.06439,3263.3,3262.9,0.8097]
[1738285750985,3.06457,3263.1,3262.9,0.8097]
[1738285751289,3.13682531,3263.0,3262.8,0.73503205]
[1738285751789,3.06475,3262.9,3262.8,0.73503205]
[1738285751990,3.13686951,3262.9,3262.8,0.73503205]
[1738285752974,3.7906649,3262.9,3262.8,0.73503205]
[1738285753676,3.76007268,3262.9,3262.8,0.73503205]
[1738285754100,3.7906649,3262.9,3262.8,0.73503205]
[1738285755079,3.7906649,3262.9,3262.8,0.28266537]
[1738285755576,3.76007268,3262.9,3262.8,0.28266537]
[1738285756412,3.06504,3262.6,3262.5,0.45295322]
[1738285756712,3.13671486,3262.6,3262.5,0.45295322]
[1738285756895,0.07167486,3262.6,3262.5,0.45295322]
[1738285757218,3.06458,3263.1,3262.5,1.23915322]
[1738285757371,0.07160189,3263.0,3262.5,1.23915322]
[1738285757568,0.07160189,3263.0,3262.6,0.015]
[1738285757766,0.07160189,3263.0,3262.9,0.015]
[1738285757965,3.09489222,3263.4,3262.9,0.015]
[1738285758199,0.07170268,3263.3,3263.0,0.7712]
[1738285759108,3.06429,3263.4,3263.0,0.7712]
[1738285759261,0.07168649,3263.2,3263.0,0.7712]
[1738285759467,0.03059222,3263.3,3263.0,0.7712]
[1738285759701,0.07175016,3263.1,3263.0,0.7712]
[1738285759944,0.03059222,3263.3,3263.0,0.7712]
[1738285760116,0.07173959,3263.1,3263.0,0.7712]
[1738285760269,3.09488222,3263.4,3263.0,0.7712]
[1738285760469,0.07173959,3263.1,3263.0,0.7787]
[1738285760763,3.06412,3263.6,3263.1,0.4533153]
[1738285760965,0.07179906,3263.5,3263.1,0.4533153]
[1738285761826,0.07179906,3263.5,3263.4,0.7924]
[1738285762028,3.06357,3264.2,3263.4,4.40668]
[1738285762323,3.06373,3264.0,3263.4,4.40668]
[1738285762492,0.03059222,3263.9,3263.4,4.40668]
[1738285762695,0.10252309,3263.9,3263.4,4.40668]
[1738285762904,0.10252309,3263.9,3263.4,3.84918]
[1738285763116,3.16634309,3263.9,3263.4,0.7849]
[1738285763406,0.07193087,3263.9,3263.8,4.38111]
[1738285763608,3.06288,3264.9,3264.2,3.06349]
[1738285763815,0.07234648,3264.8,3264.4,0.785]
[1738285763999,0.03059222,3264.7,3264.4,0.785]
[1738285764322,0.0723139,3264.6,3264.4,0.785]
[1738285764508,0.0723139,3264.6,3264.3,0.0075]
[1738285764902,0.0723139,3264.6,3264.4,0.015]
[1738285765225,0.03059222,3265.1,3264.5,3.07825]
[1738285765429,0.07258553,3265.0,3264.5,3.07825]
[1738285766082,0.07258553,3265.0,3264.9,3.06288]
[1738285766331,0.07258553,3265.0,3264.9,3.07788]
[1738285766481,3.09294222,3265.5,3264.9,3.07788]
[1738285766687,0.07273402,3265.0,3264.9,3.07788]
[1738285766887,0.7896,3265.9,3265.2,0.7799]
[1738285767131,0.7896,3265.9,3265.2,3.84242]
[1738285767132,0.41573822,3265.8,3265.2,3.84242]
[1738285767301,0.48852825,3265.8,3265.2,3.84242]
[1738285768184,3.55055825,3265.8,3265.2,3.84242]
[1738285769333,3.55055825,3265.8,3265.2,0.7724]
[1738285769499,3.06224,3265.6,3265.2,0.7724]
[1738285769700,3.06213,3265.7,3265.2,0.7724]
[1738285769929,0.072954,3265.5,3265.2,0.7724]
[1738285770228,0.07293784,3265.4,3265.3,3.07]
[1738285770410,0.385146,3265.8,3265.3,3.07]
[1738285770615,0.07309689,3265.7,3265.3,3.07]
[1738285770915,0.385146,3265.8,3265.3,3.07]
[1738285771085,0.07308073,3265.6,3265.3,3.07]
[1738285771292,0.07410354,3265.7,3265.4,3.06989]
[1738285771538,0.0740765,3265.5,3265.4,3.07739]
[1738285771701,0.03059222,3265.9,3265.4,3.07739]
[1738285771895,0.0740765,3265.5,3265.4,3.07739]
[1738285772092,0.8124,3265.8,3265.4,0.0075]
[1738285772432,0.03059222,3265.7,3265.4,0.0075]
[1738285772632,0.07408738,3265.6,3265.4,0.0075]
[1738285773536,0.03059222,3265.9,3265.4,0.0075]
[1738285773740,0.07408073,3265.5,3265.4,0.0075]
[1738285773944,3.09253222,3265.9,3265.4,0.0075]
[1738285774141,0.07408073,3265.5,3265.4,0.015]